bitfinex-derivatives/quotes_ETHF0:USTF0_20250530
["timestamp","ask_amount","ask_price","bid_price","bid_amount"]
[1748581882502,2.06184,2636.1,2636.0,0.76425343]
[1748581882989,2.06184,2636.1,2636.0,0.00568343]
[1748581883194,2.06184,2636.1,2636.0,0.76425343]
[1748581883400,1.3033,2636.1,2636.0,0.76425343]
[1748581885600,1.39499,2636.3,2636.2,0.75852]
[1748581885801,0.75849,2636.3,2636.2,0.75852]
[1748581886001,1.9063,2636.4,2636.2,0.75852]
[1748581886202,2.0499,2636.3,2636.1,0.75853]
[1748581886496,1.2914,2636.3,2636.2,0.75852]
[1748581886804,2.04989,2636.3,2636.0,0.00568343]
[1748581887005,2.04989,2636.3,2636.1,0.75852]
[1748581887211,2.04989,2636.3,2636.2,0.75852]
[1748581887705,2.0499,2636.3,2636.0,0.00568343]
[1748581887907,0.75852,2636.2,2636.1,0.75852]
[1748581888105,2.04992,2636.2,2636.1,0.75852]
[1748581888506,1.2914,2636.2,2636.1,0.75852]
[1748581888806,2.04992,2636.2,2636.1,0.75855]
[1748581889307,1.2914,2636.2,2636.1,0.75855]
[1748581889910,1.39838,2636.4,2636.2,0.7585]
[1748581890110,0.75849,2636.3,2636.2,0.7585]
[1748581890606,2.04819,2636.3,2636.1,0.75853]
[1748581891203,1.2897,2636.2,2636.1,0.75853]
[1748581891705,2.04822,2636.2,2636.0,0.76423343]
[1748581892101,1.3132,2636.1,2636.0,0.76423343]
[1748581898713,2.07175,2636.1,2636.0,0.00568343]
[1748581899212,2.69235,2636.1,2636.0,0.00568343]
[1748581899512,3.73987846,2636.1,2636.0,0.00568343]
[1748581901511,3.73967664,2636.1,2636.0,0.00568343]
[1748581904718,3.73939926,2636.1,2636.0,0.00568343]
[1748581905618,3.7395288,2636.1,2636.0,0.00568343]
[1748581907220,6.9473288,2636.1,2636.0,0.00568343]
[1748581909925,6.94789979,2636.1,2636.0,0.00568343]
[1748581910528,7.01783836,2636.1,2636.0,0.00568343]
[1748581913427,4.32548836,2636.1,2636.0,0.76425343]
[1748581913731,0.06993857,2636.1,2636.0,4.43725343]
[1748581914125,0.06993857,2636.1,2636.0,5.74955343]
[1748581918434,0.06352859,2636.1,2636.0,5.74955343]
[1748581919430,3.2078,2636.4,2636.0,10.74955343]
[1748581919634,0.00568343,2636.5,2636.3,3.2078]
[1748581919832,0.00568343,2636.5,2636.4,6.3119]
[1748581920034,0.00568343,2636.5,2636.4,7.07036]
[1748581921539,0.00568343,2636.5,2636.4,3.39736]
[1748581921740,0.00568343,2636.5,2636.4,7.06936]
[1748581922046,1.81125839,2636.5,2636.4,4.9935]
[1748581922332,1.81125839,2636.5,2636.4,4.3412]
[1748581922532,1.81125839,2636.5,2636.4,3.672]
[1748581922936,1.81125839,2636.5,2636.4,4.43046]
[1748581923136,1.05282839,2636.5,2636.4,4.43046]
[1748581923438,0.00568343,2636.5,2636.4,5.68456]
[1748581924843,0.075622,2636.5,2636.4,5.68456]
[1748581929143,0.834052,2636.5,2636.3,6.8798]
[1748581929343,0.75846,2636.4,2636.3,7.63828]
[1748581929946,0.75846,2636.4,2636.3,4.43048]
[1748581930141,0.75846,2636.4,2636.3,3.672]
[1748581930846,2.65466,2636.4,2636.3,3.672]
[1748581931248,0.75849,2636.3,2636.2,0.6468]
[1748581931952,1.80472183,2636.3,2636.2,0.6468]
[1748581932753,1.80472183,2636.3,2636.2,1.40532]
[1748581933841,0.75849,2636.3,2636.2,1.40532]
[1748581936654,1.2753,2636.3,2636.2,1.40532]
[1748581936848,1.41927,2636.4,2636.3,0.75849]
[1748581937149,2.46606882,2636.4,2636.3,0.75849]
[1748581937354,0.75849,2636.3,2636.2,1.4053]
[1748581937546,1.80535184,2636.3,2636.2,1.4053]
[1748581937952,0.75849,2636.3,2636.2,1.4053]
[1748581938152,1.80543256,2636.3,2636.2,1.4053]
[1748581939856,1.80543256,2636.3,2636.2,0.6468]
[1748581940551,3.04513256,2636.3,2636.2,0.6468]
[1748581941052,3.11507113,2636.3,2636.2,0.6468]
[1748581941352,3.11507113,2636.3,2636.0,3.67768343]
[1748581941353,0.75853,2636.2,2636.0,3.67668343]
[1748581941654,1.80638069,2636.1,2636.0,0.00568343]
[1748581942254,1.80639076,2636.1,2636.0,0.00568343]
[1748581942449,3.03439076,2636.1,2636.0,0.00568343]
[1748581944554,3.03439076,2636.1,2636.0,0.76425343]
[1748581944749,3.03439076,2636.1,2636.0,0.00568343]
[1748581946457,3.03434133,2636.1,2636.0,0.00568343]
[1748581947560,6.24214133,2636.1,2636.0,0.00568343]
[1748581950456,5.48359133,2636.1,2636.0,0.76425343]
[1748581950761,5.48305579,2636.1,2636.0,0.76425343]
[1748581950954,4.25505579,2636.1,2636.0,0.76425343]
[1748581951457,3.96635,2636.1,2636.0,0.76425343]
[1748581951759,3.96635,2636.1,2636.0,0.00568343]
[1748581951760,5.01375231,2636.1,2636.0,0.00568343]
[1748581951962,5.01375231,2636.1,2636.0,0.62008343]
[1748581956163,5.08369088,2636.1,2636.0,0.62008343]
[1748581957064,5.08369088,2636.1,2636.0,0.00568343]
[1748581959267,5.08467046,2636.1,2636.0,0.00568343]
[1748581960273,6.40947046,2636.1,2636.0,0.00568343]
[1748581963365,5.36108857,2636.1,2636.0,0.00568343]
[1748581963567,6.40981531,2636.1,2636.0,0.00568343]
[1748581966067,5.08501531,2636.1,2636.0,0.00568343]
[1748581966879,0.75867,2635.7,2635.5,4.2799]
[1748581967082,0.75865,2635.8,2635.7,0.75865]
[1748581967785,0.75866,2635.8,2635.7,0.75865]
[1748581967975,1.80755189,2635.8,2635.7,2.06725]
[1748581968287,1.80764246,2635.8,2635.7,2.06725]
[1748581968877,1.80764246,2635.8,2635.7,1.3086]
[1748581969971,1.80764246,2635.8,2635.7,2.06726]
[1748581970381,1.80764246,2635.8,2635.7,1.3086]
[1748581970881,0.75866,2635.7,2635.6,1.37657]
[1748581971081,1.80764246,2635.7,2635.6,1.37657]
[1748581971877,1.80764246,2635.7,2635.6,2.58987]
[1748581974484,1.80764246,2635.7,2635.6,2.58989]
[1748581975680,1.04898246,2635.7,2635.6,2.58989]
[1748581975877,1.80764246,2635.7,2635.6,2.58989]
[1748581976185,1.80807835,2635.7,2635.6,2.58989]
[1748581976988,1.80807835,2635.7,2635.6,1.8312]
[1748581977784,1.80807835,2635.7,2635.6,2.58989]
[1748581979084,1.04941835,2635.7,2635.6,2.58989]
[1748581979680,0.75863,2635.9,2635.7,0.75863]
[1748581979879,1.80797274,2635.8,2635.7,1.99963]
[1748581980386,0.75863,2635.8,2635.7,1.99963]
[1748581980887,1.80794126,2635.8,2635.7,1.99963]
[1748581981686,1.80794126,2635.8,2635.7,1.241]
[1748581981888,0.75866,2635.7,2635.6,1.37657]
[1748581982188,1.80806955,2635.7,2635.6,1.37657]
[1748581982586,0.75869,2635.6,2635.5,0.00568343]
[1748581982883,1.80809955,2635.6,2635.5,0.00568343]
[1748581983099,2.08529,2635.6,2635.5,0.00568343]
[1748581983388,3.1350159,2635.6,2635.5,0.00568343]
[1748581986694,0.7588,2635.2,2635.1,0.6053]
[1748581986886,0.7588,2635.2,2635.1,1.36413]
[1748581987794,0.75879,2635.3,2635.2,0.7588]
[1748581988089,1.80723194,2635.3,2635.2,2.6948]
[1748581988288,0.75879,2635.3,2635.2,2.6948]
[1748581988789,1.80713973,2635.3,2635.2,1.936]
[1748581989186,0.75879,2635.3,2635.2,1.936]
[1748581989386,5.1748,2635.5,2635.2,2.6948]
[1748581989586,0.75878,2635.3,2635.2,2.6948]
[1748581991187,0.75878,2635.3,2635.2,1.936]
[1748581995396,0.94848,2635.3,2635.2,1.936]
[1748581996094,0.94848,2635.3,2635.2,0.6616]
[1748581996693,1.99647528,2635.3,2635.2,0.6616]
[1748581996892,3.29887528,2635.3,2635.2,0.6616]
[1748582000296,3.29889188,2635.3,2635.2,0.6616]
[1748582000898,3.36883045,2635.3,2635.2,0.6616]
[1748582001799,1.30765045,2635.3,2635.2,1.4204]
[1748582002099,1.9964826,2635.3,2635.2,2.6783]
[1748582002292,0.94847,2635.3,2635.2,2.6783]
[1748582002499,0.94847,2635.3,2635.2,1.9195]
[1748582002699,1.99654676,2635.3,2635.2,1.9195]
[1748582003000,1.99654818,2635.3,2635.2,1.9195]
[1748582004600,1.99673227,2635.3,2635.2,1.9195]
[1748582004897,2.06667084,2635.3,2635.2,1.9195]
[1748582007000,1.99673227,2635.3,2635.2,1.9195]
[1748582008704,1.99735778,2635.3,2635.2,1.9195]
[1748582012809,1.99735778,2635.3,2635.2,0.6616]
[1748582013109,0.7588,2635.2,2635.1,3.671]
[1748582013309,1.8092482,2635.2,2635.1,3.671]
[1748582014411,1.8092482,2635.2,2635.0,0.6533]
[1748582014412,0.75883,2635.1,2635.0,0.6533]
[1748582014613,1.8092782,2635.1,2635.0,4.3233]
[1748582015110,1.9989782,2635.1,2635.0,4.3233]
[1748582015813,1.9989782,2635.1,2635.0,5.603]
[1748582021710,1.99860408,2635.1,2635.0,5.603]
[1748582025122,1.998592,2635.1,2635.0,5.603]
[1748582026016,0.94853,2635.1,2635.0,5.603]
[1748582026221,1.99856394,2635.1,2635.0,5.603]
[1748582029326,2.06850251,2635.1,2635.0,5.603]
[1748582030331,1.99856394,2635.1,2635.0,4.3233]
[1748582031329,2.06850251,2635.1,2635.0,4.3233]
[1748582032030,2.06850251,2635.1,2635.0,5.6374]
[1748582032524,1.99856394,2635.1,2635.0,5.6374]
[1748582032926,1.99856394,2635.1,2635.0,4.3233]
[1748582033121,1.99856394,2635.1,2634.1,3.667]
[1748582033122,4.44753394,2635.1,2634.1,3.667]
[1748582033327,3.96676,2634.7,2634.5,0.75899]
[1748582033531,0.25963857,2635.1,2634.6,5.5862]
[1748582033734,1.80862187,2635.0,2634.8,0.75891]
[1748582033936,0.25963857,2635.1,2634.9,2.66209]
[1748582033937,1.01847857,2635.1,2634.9,2.66209]
[1748582034225,1.01847857,2635.1,2635.0,5.5862]
[1748582034428,1.99985712,2635.1,2635.0,5.5862]
[1748582034727,1.99984322,2635.1,2635.0,5.5862]
[1748582038836,1.99996747,2635.1,2635.0,5.5862]
[1748582039534,1.99996747,2635.1,2635.0,4.3129]
[1748582041219,3.98106747,2635.1,2635.0,4.3129]
[1748582041728,3.98119057,2635.1,2635.0,3.667]
[1748582041928,10.11950057,2635.1,2634.5,3.668]
[1748582042227,3.2078,2634.6,2634.5,4.42701]
[1748582043531,0.75893,2634.8,2634.6,0.75896]
[1748582043732,1.05141805,2634.7,2634.6,0.75896]
[1748582043933,1.81036805,2634.7,2634.6,0.75896]
[1748582044232,1.05141805,2634.7,2634.6,0.75896]
[1748582044439,1.24111805,2634.7,2634.6,0.75896]
[1748582045234,0.94865,2634.7,2634.6,0.75896]
[1748582046037,0.94865,2634.7,2634.5,3.668]
[1748582046038,0.94865,2634.7,2634.5,4.42698]
[1748582046237,0.94865,2634.7,2634.5,3.668]
[1748582046533,0.94865,2634.7,2634.6,0.75898]
[1748582046833,0.75898,2634.6,2634.4,1.41402]
[1748582047033,0.75898,2634.6,2633.8,1.89801]
[1748582047034,4.25897782,2634.5,2633.7,3.668]
[1748582047232,0.7591,2634.2,2633.9,0.6154]
[1748582047434,0.75908,2634.3,2634.1,0.75911]
[1748582047632,0.75909,2634.2,2634.1,0.75911]
[1748582047832,0.75915,2634.0,2633.9,0.6154]
[1748582048034,3.2078,2634.2,2633.6,3.96704]
[1748582048333,0.75919,2633.9,2633.7,4.42723]
[1748582048829,0.75919,2633.9,2633.7,0.75923]
[1748582049035,0.75919,2633.9,2633.8,3.668]
[1748582050236,0.75918,2633.9,2633.8,3.668]
[1748582050835,3.96698,2633.9,2633.8,3.668]
[1748582051433,0.75924,2633.7,2633.5,0.75928]
[1748582051736,0.75924,2633.7,2633.6,3.668]
[1748582053628,0.75924,2633.7,2633.6,3.669]
[1748582054334,1.40454,2633.7,2633.6,3.669]
[1748582056235,1.40454,2633.7,2632.6,1.89885]
[1748582056236,2.54347,2633.7,2633.5,3.669]
[1748582056434,5.28356,2633.6,2633.5,3.669]
[1748582056836,0.75937,2633.3,2633.1,1.3666]
[1748582057034,0.75937,2633.3,2633.2,3.669]
[1748582057434,0.75937,2633.3,2633.1,0.6072]
[1748582057739,0.75937,2633.3,2633.1,1.36659]
[1748582058147,0.75937,2633.3,2633.2,3.669]
[1748582058441,0.75937,2633.3,2633.2,4.42838]
[1748582058833,0.75937,2633.3,2633.2,3.669]
[1748582059033,0.75937,2633.3,2633.1,1.36658]
[1748582059232,3.96715,2633.3,2633.2,3.669]
[1748582059544,0.75938,2633.2,2633.1,0.6072]
[1748582059743,0.75938,2633.2,2633.1,4.2762]
[1748582060040,0.94918,2633.2,2633.1,0.6072]
[1748582060241,0.94918,2633.2,2633.1,5.5219]
[1748582061448,0.94918,2633.2,2633.1,1.8539]
[1748582061646,0.94918,2633.2,2633.1,5.5219]
[1748582061848,0.1898,2633.2,2633.1,2.61331]
[1748582062049,3.2078,2633.6,2633.5,0.75929]
[1748582062355,3.2078,2633.6,2633.5,4.42729]
[1748582071758,4.4175,2633.6,2633.5,0.75929]
[1748582071951,3.2078,2633.6,2633.5,4.42729]
[1748582078761,0.94905,2633.7,2633.6,0.75926]
[1748582078952,0.1898,2633.7,2633.6,0.75926]
[1748582079556,0.1898,2633.7,2633.6,1.42006]
[1748582081760,3.96701,2633.8,2633.7,0.75923]
[1748582082064,5.01748109,2633.8,2633.7,0.75923]
[1748582082865,3.96703,2633.8,2633.6,1.42004]
[1748582083164,3.96703,2633.8,2633.7,0.75924]
[1748582083462,5.01752139,2633.8,2633.7,0.75924]
[1748582083663,5.01752211,2633.8,2633.6,1.42005]
[1748582083863,3.96702,2633.8,2633.6,1.42005]
[1748582084065,1.8685,2633.7,2633.6,1.42005]
[1748582090972,1.8685,2633.7,2633.6,0.75925]
[1748582091969,2.92158421,2633.7,2633.2,3.668]
[1748582092168,2.26518421,2633.6,2633.5,0.75929]
[1748582096369,1.2121,2633.6,2633.5,0.75929]
[1748582096670,2.26457235,2633.6,2633.5,0.75929]
[1748582099574,3.02383235,2633.6,2633.5,0.75929]
[1748582099776,0.75932,2633.5,2633.3,1.37323]
[1748582099963,1.2189,2633.4,2633.3,1.37323]
[1748582101875,1.8573,2633.4,2633.3,1.37323]
[1748582102068,2.61662,2633.4,2633.3,1.37323]
[1748582102269,2.61664,2633.4,2633.2,1.42067]
[1748582102470,1.2251,2633.3,2633.2,1.42067]
[1748582102672,0.1898,2633.4,2633.3,0.75935]
[1748582102974,0.1898,2633.4,2633.3,1.36525]
[1748582103273,0.1898,2633.4,2633.3,3.21965]
[1748582107074,0.1898,2633.4,2633.3,6.88765]
[1748582109978,0.1898,2633.4,2633.3,3.21965]
[1748582110177,0.1898,2633.4,2633.3,6.88765]
[1748582110377,0.1898,2633.4,2633.3,3.21965]
[1748582110577,0.1898,2633.4,2633.3,6.88765]
[1748582111281,0.1898,2633.4,2633.3,3.21965]
[1748582111477,0.1898,2633.4,2633.3,6.88765]
[1748582125086,3.2078,2634.4,2633.3,11.1283]
[1748582125289,1.05195729,2634.1,2634.0,0.75915]
[1748582125485,2.6482,2634.7,2634.6,0.75898]
[1748582125687,3.03359472,2634.7,2634.6,4.42598]
[1748582126196,1.9817,2634.7,2634.6,4.42598]
[1748582127399,3.2078,2634.8,2634.7,0.75895]
[1748582127898,4.5034,2634.8,2634.7,0.75895]
[1748582128299,5.1281,2634.8,2634.7,0.75895]
[1748582131805,5.1281,2634.8,2634.7,4.42495]
[1748582139614,3.2078,2634.8,2634.7,4.42495]
[1748582141210,3.2078,2634.8,2634.7,0.75895]
[1748582141410,4.5497,2634.8,2634.7,4.42495]
[1748582143613,5.1656,2634.8,2634.7,4.42495]
[1748582145914,3.2078,2634.8,2634.7,4.42495]
[1748582147108,3.2078,2634.8,2634.7,5.05265]
[1748582147710,0.00569433,2634.9,2634.8,0.75892]
[1748582149622,0.00569433,2634.9,2634.8,3.666]
[1748582149921,1.24219433,2634.9,2634.8,4.42492]
[1748582150114,1.24219433,2634.9,2634.8,3.666]
[1748582150308,2.00108433,2634.9,2634.8,3.666]
[1748582151013,2.00108433,2634.9,2634.8,4.42492]
[1748582151219,0.75893,2634.8,2634.6,0.75896]
[1748582151419,1.3206,2634.7,2634.6,0.75896]
[1748582151609,1.3206,2634.7,2634.6,4.42396]
[1748582153325,0.00569433,2634.9,2634.8,0.75892]
[1748582155218,1.0564494,2634.9,2634.8,0.75892]
[1748582156430,1.0564494,2634.9,2634.7,0.6198]
[1748582156621,3.12459507,2634.8,2634.7,3.665]
[1748582157420,3.12459507,2634.8,2634.7,4.42395]
[1748582157620,2.36565507,2634.8,2634.7,4.42395]
[1748582161532,2.36687518,2634.8,2634.7,4.42395]
[1748582162026,1.05197518,2634.8,2634.7,4.42395]
[1748582165330,0.76459433,2634.9,2634.8,0.75892]
[1748582165531,3.10888542,2634.9,2634.8,0.75892]
[1748582166226,3.10887542,2634.9,2634.8,0.75892]
[1748582166526,3.10889542,2634.9,2634.7,4.42392]
[1748582166720,2.36089109,2634.8,2634.7,4.42392]
[1748582168736,1.05199109,2634.8,2634.7,4.42392]
[1748582169635,1.98280433,2634.9,2634.8,0.75892]
[1748582169834,1.81658258,2634.9,2634.8,0.75892]
[1748582172334,2.00628258,2634.9,2634.8,0.75892]
[1748582173838,2.0064394,2634.9,2634.8,0.75892]
[1748582175039,0.75892,2634.8,2634.7,4.42392]
[1748582175233,1.81105507,2634.8,2634.7,4.42392]
[1748582175433,1.05213507,2634.8,2634.7,4.42392]
[1748582176138,1.81105507,2634.8,2634.7,4.42392]
[1748582177041,1.05213507,2634.8,2634.7,4.42392]
[1748582178140,0.95429433,2634.9,2634.8,0.75892]
[1748582178341,2.00657036,2634.9,2634.8,0.75892]
[1748582178638,1.24767036,2634.9,2634.8,1.38532]
[1748582178835,2.00656036,2634.9,2634.8,0.6264]
[1748582179036,2.00656036,2634.9,2634.8,1.38532]
[1748582182444,1.24778901,2634.9,2634.8,1.38532]
[1748582184544,2.00667901,2634.9,2634.8,2.63202]
[1748582184746,2.00667901,2634.9,2634.8,1.38532]
[1748582184945,2.00667901,2634.9,2634.8,0.6264]
[1748582185147,2.62977901,2634.9,2634.8,0.6264]
[1748582185447,0.75892,2634.8,2634.7,3.665]
[1748582185647,0.75897,2634.7,2634.5,0.75898]
[1748582185951,0.75897,2634.7,2634.6,3.663]
[1748582186355,0.75897,2634.7,2634.6,4.42198]
[1748582187646,0.75895,2634.7,2634.6,4.42198]
[1748582188050,0.94865,2634.7,2634.6,4.42198]
[1748582189150,0.1897,2634.7,2634.6,4.42198]
[1748582189656,0.94865,2634.7,2634.6,4.42198]
[1748582189955,0.94865,2634.7,2634.6,3.663]
[1748582190151,0.759,2634.5,2634.4,0.00569433]
[1748582190354,0.759,2634.5,2634.4,3.66869433]
[1748582190552,1.81155171,2634.5,2634.4,0.00569433]
[1748582190853,8.09496279,2634.5,2634.4,0.00569433]
[1748582194557,3.09496279,2634.5,2634.4,0.00569433]
[1748582197247,0.75918,2633.9,2633.8,38.262]
[1748582197455,0.75921,2633.8,2633.7,3.663]
[1748582197754,0.75929,2633.5,2633.4,3.663]
[1748582198459,0.75929,2633.5,2633.4,4.3215]
[1748582198659,0.75929,2633.5,2633.4,5.08082]
[1748582198858,0.75929,2633.5,2633.4,4.3215]
[1748582200559,2.08539,2633.5,2633.4,4.3215]
[1748582200860,2.08539,2633.5,2633.4,3.663]
[1748582201763,0.75935,2633.3,2633.2,0.6567]
[1748582201957,3.96715,2633.3,2633.2,4.3207]
[1748582202152,4.25518986,2633.3,2632.6,3.664]
[1748582202351,3.2078,2632.8,2632.7,1.41622]
[1748582202758,3.2078,2632.8,2632.7,2.62702]
[1748582205454,0.75953,2632.7,2632.5,0.75956]
[1748582205660,0.75953,2632.7,2632.6,0.75955]
[1748582205661,1.2646,2632.7,2632.6,0.75955]
[1748582206665,2.02414,2632.7,2632.5,0.75957]
[1748582206967,0.75955,2632.6,2632.5,1.3313]
[1748582207361,0.75957,2632.6,2632.4,5.06441]
[1748582207563,3.8747,2632.8,2632.4,5.6361]
[1748582207564,3.2078,2632.8,2632.4,5.6361]
[1748582207870,3.96731,2632.8,2632.6,0.75954]
[1748582208869,0.75952,2632.7,2632.5,2.09086]
[1748582209463,3.96731,2632.8,2632.6,0.75955]
[1748582209665,3.96731,2632.8,2632.6,2.08905]
[1748582210265,3.2078,2632.8,2632.7,0.75952]
[1748582210865,3.2078,2632.8,2632.7,1.38012]
[1748582215167,3.96729,2632.8,2632.7,0.6206]
[1748582215674,3.96729,2632.8,2632.7,1.8672]
[1748582215869,3.96729,2632.8,2632.7,0.6206]
[1748582219377,3.96729,2632.8,2632.7,1.38012]
[1748582219873,4.15719,2632.8,2632.7,1.38012]
[1748582220774,3.3977,2632.8,2632.7,1.38012]
[1748582221072,4.15719,2632.8,2632.7,1.8544]
[1748582221277,4.15719,2632.8,2632.7,0.6206]
[1748582222473,4.15719,2632.8,2632.7,3.663]
[1748582222979,0.75952,2632.7,2632.6,0.75955]
[1748582223178,0.75952,2632.7,2632.6,0.06993857]
[1748582223379,0.75952,2632.7,2632.6,3.73293857]
[1748582224173,0.75952,2632.7,2632.6,3.663]
[1748582224579,0.75952,2632.7,2632.5,0.75957]
[1748582224772,0.75955,2632.6,2632.5,0.75957]
[1748582224973,0.75955,2632.6,2632.5,4.42357]
[1748582225180,0.75955,2632.6,2632.5,0.75957]
[1748582225387,0.75955,2632.6,2632.5,5.68907]
[1748582225578,0.75955,2632.6,2632.5,2.02507]
[1748582225781,0.75955,2632.6,2632.5,5.68907]
[1748582226582,0.75954,2632.7,2632.6,0.75955]
[1748582226783,0.75954,2632.7,2632.6,4.42355]
[1748582228284,3.3977,2632.8,2632.7,0.75952]
[1748582228476,4.44823094,2632.8,2632.7,2.07262]
[1748582228671,4.44859144,2632.8,2632.6,4.42353]
[1748582228878,3.3977,2632.8,2632.6,4.42353]
[1748582229073,4.15721,2632.8,2632.6,0.75953]
[1748582229276,4.15721,2632.8,2632.7,3.664]
[1748582229477,5.20811402,2632.8,2632.7,3.664]
[1748582229680,0.75952,2632.7,2632.6,0.75955]
[1748582229882,1.81090358,2632.7,2632.5,0.75956]
[1748582230076,3.3977,2632.8,2632.5,1.3131]
[1748582230281,0.75954,2632.7,2632.6,3.664]
[1748582230584,4.15721,2632.8,2632.7,0.00770511]
[1748582230780,5.2092326,2632.8,2632.7,0.00770511]
[1748582230979,5.20922642,2632.8,2632.7,0.00770511]
[1748582233383,5.21026984,2632.8,2632.7,0.00770511]
[1748582234277,5.21026984,2632.8,2632.7,3.67170511]
[1748582234478,5.21026984,2632.8,2632.7,0.00770511]
[1748582234679,5.21026984,2632.8,2632.7,3.67170511]
[1748582235180,5.2103247,2632.8,2632.7,3.67170511]
[1748582235478,5.2103247,2632.8,2632.7,0.00770511]
[1748582235877,5.2103247,2632.8,2632.7,0.76722511]
[1748582236079,5.2103247,2632.8,2632.7,1.29980511]
[1748582236484,5.2103247,2632.8,2632.7,0.00770511]
[1748582238486,5.2103247,2632.8,2631.9,5.10718]
[1748582238487,1.89887,2632.7,2631.6,3.2078]
[1748582238689,0.75968,2632.2,2632.1,0.75968]
[1748582238986,0.75968,2632.2,2632.1,4.42368]
[1748582239687,3.96743,2632.4,2632.2,0.75965]
[1748582239885,3.2078,2632.4,2632.3,0.75964]
[1748582240392,3.2078,2632.4,2631.5,1.89965]
[1748582240582,0.75978,2631.8,2631.7,0.06993857]
[1748582241479,3.2078,2631.8,2631.1,3.664]
[1748582241781,1.05233131,2631.7,2631.6,0.75984]
[1748582241984,3.96759,2631.8,2631.6,3.664]
[1748582242385,3.2078,2631.8,2631.6,3.664]
[1748582242697,3.96758,2631.8,2631.7,0.6473]
[1748582243491,3.2078,2631.8,2631.7,0.71723857]
[1748582244390,3.2078,2631.8,2631.7,1.94353857]
[1748582244587,3.2078,2631.8,2631.7,1.8736]
[1748582245485,3.3977,2631.8,2631.7,1.8736]
[1748582245891,4.15748,2631.8,2631.7,1.8736]
[1748582246192,0.75981,2631.7,2631.6,0.6111]
[1748582246394,0.75981,2631.7,2631.6,4.3291]
[1748582246886,0.75981,2631.7,2631.6,3.718]
[1748582247897,2.00031,2631.7,2631.6,3.718]
[1748582249191,1.2405,2631.7,2631.4,0.06993857]
[1748582249391,3.96767,2631.5,2631.4,0.06993857]
[1748582249587,0.7599,2631.4,2631.3,3.718]
[1748582249785,2.0769,2631.4,2631.3,3.718]
[1748582250989,3.2078,2631.5,2631.4,0.7599]
[1748582251195,0.1899,2631.8,2631.3,5.0109]
[1748582251396,0.75981,2631.7,2631.5,0.75985]
[1748582251894,0.75981,2631.7,2631.6,0.606]
[1748582252096,0.9497,2631.8,2631.6,1.36584]
[1748582252390,0.9497,2631.8,2631.7,4.47881]
[1748582252391,0.1899,2631.8,2631.7,4.47881]
[1748582252596,0.94968,2631.8,2631.7,5.0612]
[1748582252796,0.94968,2631.8,2631.7,3.719]
[1748582253999,0.94968,2631.8,2631.7,4.47881]
[1748582254199,0.1899,2631.8,2631.7,4.47881]
[1748582254400,0.1899,2631.8,2631.7,5.82101]
[1748582254697,0.1899,2631.8,2631.7,6.47011]
[1748582256497,0.1899,2631.8,2631.6,0.67593857]
[1748582256697,0.94971,2631.8,2631.7,3.719]
[1748582256892,0.1899,2631.8,2631.7,4.47881]
[1748582257097,0.1899,2631.8,2631.7,5.77291]
[1748582257491,0.1899,2631.8,2631.1,1.89991]
[1748582257492,6.23879955,2631.8,2630.7,3.2078]
[1748582257693,3.96771,2631.4,2631.2,0.75993]
[1748582257991,3.96771,2631.4,2631.3,0.6608]
[1748582258194,3.96771,2631.4,2631.3,1.8854]
[1748582258399,3.9677,2631.4,2631.3,2.64533]
[1748582258693,3.9677,2631.4,2631.3,1.8854]
[1748582258901,3.2078,2631.4,2630.8,0.6223]
[1748582259108,0.76,2631.1,2630.9,0.6608]
[1748582259402,0.76,2631.1,2631.0,3.719]
[1748582259594,0.76,2631.1,2631.0,4.47901]
[1748582260087,0.75998,2631.2,2631.0,4.47901]
[1748582260292,1.9875,2631.3,2631.0,5.70361]
[1748582260497,0.75998,2631.2,2631.0,5.70361]
[1748582260689,0.75998,2631.1,2631.0,4.9436]
[1748582261390,0.75997,2631.2,2631.0,5.7036]
[1748582261594,0.75997,2631.2,2631.1,3.719]
[1748582262094,0.75998,2631.1,2631.0,1.2246]
[1748582262294,0.75998,2631.1,2631.0,4.9436]
[1748582262995,0.75997,2631.2,2631.0,5.70361]
[1748582263200,1.9875,2631.3,2631.0,5.70361]
[1748582263201,0.75998,2631.1,2631.0,5.70361]
[1748582263401,0.75998,2631.1,2631.0,4.9436]
[1748582264197,0.75997,2631.2,2631.0,5.7036]
[1748582264398,0.75998,2631.1,2631.0,3.719]
[1748582265604,0.76001,2631.0,2630.9,0.6608]
[1748582265801,0.76001,2631.0,2630.9,4.3798]
[1748582266705,3.2078,2631.1,2630.9,5.13984]
[1748582266906,3.9678,2631.1,2630.9,6.44864]
[1748582267104,0.76001,2631.0,2630.9,5.6886]
[1748582267406,3.9678,2631.1,2630.9,5.6886]
[1748582267608,0.76001,2631.0,2630.9,5.6886]
[1748582267804,3.96779,2631.1,2630.9,6.44861]
[1748582268003,0.76001,2631.0,2630.9,6.44861]
[1748582268306,3.2078,2631.1,2631.0,0.76001]
[1748582268606,3.96778,2631.1,2631.0,0.76001]
[1748582268808,3.96778,2631.1,2630.9,6.44862]
[1748582269710,3.2078,2631.1,2631.0,0.76001]
[1748582270003,3.96765,2631.6,2630.9,8.96633857]
[1748582270211,1.81067417,2631.5,2631.3,0.75991]
[1748582270413,0.75987,2631.5,2631.4,4.3827]
[1748582270706,1.81119939,2631.5,2631.4,4.3827]
[1748582272211,1.81129274,2631.5,2631.4,4.3827]
[1748582275115,2.00129274,2631.5,2631.4,4.3827]
[1748582275616,0.75996,2631.2,2631.1,1.2254]
[1748582275911,0.75996,2631.2,2631.1,4.9614]
[1748582278615,3.96776,2631.2,2631.1,4.9614]
[1748582279510,3.2078,2631.2,2631.1,4.9614]
[1748582279710,3.2078,2631.2,2631.1,5.72138]
[1748582280110,3.96776,2631.2,2631.1,5.72138]